[Event "*** Titled Tuesday Blitz"]
[Site "Chess.com"]
[Date "2021.02.09"]
[Round "11"]
[White "Mr_Sinigami"]
[Black "Agibileg"]
[Result "1-0"]
[WhiteElo "2640"]
[BlackElo "2509"]
[TimeControl "180+1"]
[EndTime "12:06:49 PST"]
[Termination "Mr_Sinigami won by resignation"]

1. d4 {[%clk 0:03:00.9]} 1... c5 {[%clk 0:03:00.4]} 2. d5 {[%clk 0:03:00.8]}
2... e6 {[%clk 0:03:00.5]} 3. c4 {[%clk 0:03:00.5]} 3... exd5 {[%clk 0:03:00.9]}
4. cxd5 {[%clk 0:03:00.8]} 4... Nf6 {[%clk 0:03:00.8]} 5. Nc3 {[%clk 0:03:00.9]}
5... d6 {[%clk 0:03:01.1]} 6. Nf3 {[%clk 0:03:01]} 6... g6 {[%clk 0:03:01.5]} 7.
Nd2 {[%clk 0:03:01]} 7... Bg7 {[%clk 0:03:01.7]} 8. Nc4 {[%clk 0:03:00.9]} 8...
O-O {[%clk 0:03:02.2]} 9. Bf4 {[%clk 0:03:00.4]} 9... Na6 {[%clk 0:02:54]} 10.
Bxd6 {[%clk 0:02:49.6]} 10... Re8 {[%clk 0:02:52.9]} 11. e3 {[%clk 0:02:39.8]}
11... Ne4 {[%clk 0:02:10]} 12. Nxe4 {[%clk 0:02:38.5]} 12... Rxe4 {[%clk
0:02:10.9]} 13. Bg3 {[%clk 0:02:38]} 13... b5 {[%clk 0:01:55.5]} 14. Nd6 {[%clk
0:02:36.5]} 14... Rb4 {[%clk 0:01:52.1]} 15. Bxb5 {[%clk 0:02:18.1]} 15... Bxb2
{[%clk 0:01:40.5]} 16. O-O {[%clk 0:02:17.6]} 16... Bxa1 {[%clk 0:01:16.3]} 17.
Qxa1 {[%clk 0:02:16.1]} 17... Nc7 {[%clk 0:00:59.1]} 18. Bc6 {[%clk 0:02:14.9]}
18... Rab8 {[%clk 0:00:59.3]} 19. Qh8+ {[%clk 0:02:05]} 19... Kxh8 {[%clk
0:00:58.1]} 20. Nxf7+ {[%clk 0:02:05.9]} 20... Kg8 {[%clk 0:00:52.7]} 21. Nxd8
{[%clk 0:02:06.8]} 21... Rb1 {[%clk 0:00:52.8]} 22. Bxc7 {[%clk 0:02:04.7]}
22... Ba6 {[%clk 0:00:52.7]} 23. h4 {[%clk 0:01:57.5]} 23... Rxf1+ {[%clk
0:00:49.9]} 24. Kh2 {[%clk 0:01:57.5]} 24... Rc8 {[%clk 0:00:47.3]} 25. d6
{[%clk 0:01:53.3]} 25... Rxf2 {[%clk 0:00:36.9]} 26. Bd5+ {[%clk 0:01:52.7]}
26... Kg7 {[%clk 0:00:25.4]} 27. Ne6+ {[%clk 0:01:52.4]} 27... Kf6 {[%clk
0:00:23.2]} 28. d7 {[%clk 0:01:52.3]} 28... Ke7 {[%clk 0:00:19.5]} 29. dxc8=Q
{[%clk 0:01:40.3]} 29... Bxc8 {[%clk 0:00:20.4]} 30. Nf4 {[%clk 0:01:11.8]}
30... Rc2 {[%clk 0:00:20]} 31. Bb3 {[%clk 0:01:10.6]} 31... Rc1 {[%clk
0:00:19.4]} 32. Nd5+ {[%clk 0:01:06.8]} 32... Kd7 {[%clk 0:00:19.6]} 33. Ba4+
{[%clk 0:01:06.8]} 33... Ke6 {[%clk 0:00:19.2]} 34. Nf4+ {[%clk 0:01:06.9]}
34... Kf5 {[%clk 0:00:17.8]} 35. Ba5 {[%clk 0:01:01.9]} 35... c4 {[%clk
0:00:16.3]} 36. Bd2 {[%clk 0:01:01.6]} 36... Ra1 {[%clk 0:00:15.3]} 37. Bc2+
{[%clk 0:00:57.3]} 37... Kf6 {[%clk 0:00:14.4]} 38. Bc3+ {[%clk 0:00:57.1]} 1-0

[Event "*** Titled Tuesday Blitz"]
[Site "Chess.com"]
[Date "2021.02.09"]
[Round "11"]
[White "KruHor"]
[Black "dpopadic"]
[Result "1-0"]
[WhiteElo "2537"]
[BlackElo "2323"]
[TimeControl "180+1"]
[EndTime "12:06:49 PST"]
[Termination "KruHor won on time"]

1. e4 {[%clk 0:02:57.7]} 1... c5 {[%clk 0:02:59.2]} 2. Nf3 {[%clk 0:02:57.1]}
2... Nc6 {[%clk 0:02:59.7]} 3. d4 {[%clk 0:02:56.4]} 3... cxd4 {[%clk
0:02:59.6]} 4. Nxd4 {[%clk 0:02:56.4]} 4... Nf6 {[%clk 0:03:00.2]} 5. Nc3 {[%clk
0:02:56]} 5... e5 {[%clk 0:02:59.8]} 6. Nf3 {[%clk 0:02:55.4]} 6... Bb4 {[%clk
0:02:46.2]} 7. Bd3 {[%clk 0:02:54.6]} 7... d5 {[%clk 0:02:41.4]} 8. O-O {[%clk
0:02:51.2]} 8... Bxc3 {[%clk 0:02:36.5]} 9. exd5 {[%clk 0:02:50.2]} 9... Nxd5
{[%clk 0:02:02.9]} 10. bxc3 {[%clk 0:02:49]} 10... O-O {[%clk 0:01:46.6]} 11.
Qe1 {[%clk 0:02:43.5]} 11... Re8 {[%clk 0:01:39.1]} 12. Ng5 {[%clk 0:02:41.9]}
12... h6 {[%clk 0:01:26.7]} 13. Ne4 {[%clk 0:02:36]} 13... Nf4 {[%clk
0:01:15.8]} 14. Bxf4 {[%clk 0:02:30.2]} 14... exf4 {[%clk 0:01:15.4]} 15. Rd1
{[%clk 0:02:29.6]} 15... f3 {[%clk 0:01:08.5]} 16. Qe3 {[%clk 0:02:22.1]} 16...
fxg2 {[%clk 0:01:05.1]} 17. Rfe1 {[%clk 0:02:21.4]} 17... Be6 {[%clk 0:01:03.4]}
18. Bc4 {[%clk 0:01:57.1]} 18... Qh4 {[%clk 0:00:55.4]} 19. Nd6 {[%clk
0:01:55.4]} 19... Re7 {[%clk 0:00:40.7]} 20. Qg3 {[%clk 0:01:21.5]} 20... Qxg3
{[%clk 0:00:39.9]} 21. hxg3 {[%clk 0:01:21.2]} 21... Bxc4 {[%clk 0:00:38.9]} 22.
Rxe7 {[%clk 0:01:20.7]} 22... Nxe7 {[%clk 0:00:37.8]} 23. Nxc4 {[%clk
0:01:20.3]} 23... Rc8 {[%clk 0:00:35.7]} 24. Ne5 {[%clk 0:01:19.6]} 24... Rxc3
{[%clk 0:00:30.3]} 25. Rd7 {[%clk 0:01:11.5]} 25... Nf5 {[%clk 0:00:21.2]} 26.
Rxf7 {[%clk 0:01:07.8]} 26... Nd4 {[%clk 0:00:17.2]} 27. Rxb7 {[%clk 0:01:07.1]}
27... Rxc2 {[%clk 0:00:15.2]} 28. Rxa7 {[%clk 0:01:06.2]} 28... Re2 {[%clk
0:00:14.4]} 29. Ng6 {[%clk 0:01:03]} 29... Kh7 {[%clk 0:00:10.2]} 30. Nf4 {[%clk
0:01:01.7]} 30... Rb2 {[%clk 0:00:09.5]} 31. Kxg2 {[%clk 0:01:00.7]} 31... Nf5
{[%clk 0:00:06.7]} 32. a4 {[%clk 0:00:59.2]} 32... Ne3+ {[%clk 0:00:06.2]} 33.
Kf3 {[%clk 0:00:58.3]} 33... Nc4 {[%clk 0:00:06.4]} 34. Ne6 {[%clk 0:00:56.2]}
1-0

[Event "*** Titled Tuesday Blitz"]
[Site "Chess.com"]
[Date "2021.02.09"]
[Round "11"]
[White "rasmussvane"]
[Black "PSvidler"]
[Result "0-1"]
[WhiteElo "2913"]
[BlackElo "2926"]
[TimeControl "180+1"]
[EndTime "12:06:51 PST"]
[Termination "PSvidler won by resignation"]

1. Nf3 {[%clk 0:03:00.9]} 1... d5 {[%clk 0:02:58.3]} 2. g3 {[%clk 0:03:01.2]}
2... g6 {[%clk 0:02:58.3]} 3. Bg2 {[%clk 0:03:00.5]} 3... Bg7 {[%clk 0:02:58.5]}
4. d4 {[%clk 0:03:01.2]} 4... Nf6 {[%clk 0:02:58.5]} 5. O-O {[%clk 0:03:01.8]}
5... O-O {[%clk 0:02:58.4]} 6. c4 {[%clk 0:03:02.5]} 6... c6 {[%clk 0:02:55.1]}
7. Qb3 {[%clk 0:03:02.9]} 7... a5 {[%clk 0:02:49.5]} 8. Rd1 {[%clk 0:03:01.5]}
8... a4 {[%clk 0:02:46.7]} 9. Qb4 {[%clk 0:03:01.6]} 9... dxc4 {[%clk
0:02:46.3]} 10. Qxc4 {[%clk 0:03:02.2]} 10... Bf5 {[%clk 0:02:46.3]} 11. Bf4
{[%clk 0:03:01.2]} 11... Qa5 {[%clk 0:02:36.2]} 12. Na3 {[%clk 0:02:54.4]} 12...
Nbd7 {[%clk 0:02:34.8]} 13. e3 {[%clk 0:02:18.6]} 13... Be4 {[%clk 0:02:30.8]}
14. Qe2 {[%clk 0:02:13.8]} 14... Qh5 {[%clk 0:02:23.4]} 15. Nc4 {[%clk
0:02:06.1]} 15... Nd5 {[%clk 0:02:21.1]} 16. Ncd2 {[%clk 0:02:00.9]} 16... Nxf4
{[%clk 0:02:19.4]} 17. exf4 {[%clk 0:01:57.8]} 17... Bxf3 {[%clk 0:01:57.5]} 18.
Bxf3 {[%clk 0:01:58.7]} 18... Qb5 {[%clk 0:01:47.2]} 19. Qxb5 {[%clk 0:01:44.8]}
19... cxb5 {[%clk 0:01:46.9]} 20. Bxb7 {[%clk 0:01:45.6]} 20... Ra7 {[%clk
0:01:30.8]} 21. Bc6 {[%clk 0:01:44.4]} 21... Bxd4 {[%clk 0:01:30]} 22. Rab1
{[%clk 0:01:30.1]} 22... Nc5 {[%clk 0:01:20.6]} 23. Nf3 {[%clk 0:00:38.2]} 23...
Bf6 {[%clk 0:01:19.3]} 24. Bxb5 {[%clk 0:00:36.6]} 24... Rb8 {[%clk 0:01:17.6]}
25. Bc4 {[%clk 0:00:36.6]} 25... Rxb2 {[%clk 0:01:16.8]} 26. Ne5 {[%clk
0:00:27.6]} 26... Bxe5 {[%clk 0:01:12.6]} 27. fxe5 {[%clk 0:00:27.8]} 27... a3
{[%clk 0:01:09.1]} 28. Rxb2 {[%clk 0:00:22.2]} 28... axb2 {[%clk 0:01:09]} 29.
Rb1 {[%clk 0:00:22.7]} 29... Ra4 {[%clk 0:01:07]} 30. Bb3 {[%clk 0:00:21.7]}
30... Nxb3 {[%clk 0:01:06.6]} 31. Rxb2 {[%clk 0:00:17.1]} 31... Nd4 {[%clk
0:01:06.3]} 32. f4 {[%clk 0:00:17]} 32... g5 {[%clk 0:01:04.5]} 33. Kf2 {[%clk
0:00:13.7]} 33... gxf4 {[%clk 0:01:04.2]} 34. gxf4 {[%clk 0:00:14.6]} 34... Ne6
{[%clk 0:01:03.6]} 35. Ke3 {[%clk 0:00:11.8]} 35... Rxf4 {[%clk 0:01:02.7]} 36.
Rb7 {[%clk 0:00:11]} 36... Ra4 {[%clk 0:01:01.9]} 37. Rxe7 {[%clk 0:00:07]}
37... Rxa2 {[%clk 0:01:01.6]} 38. h4 {[%clk 0:00:07.1]} 38... Rh2 {[%clk
0:01:02]} 0-1

[Event "*** Titled Tuesday Blitz"]
[Site "Chess.com"]
[Date "2021.02.09"]
[Round "11"]
[White "igorcadilhac"]
[Black "HackingKid98"]
[Result "1-0"]
[WhiteElo "2333"]
[BlackElo "2461"]
[TimeControl "180+1"]
[EndTime "12:06:54 PST"]
[Termination "igorcadilhac won by checkmate"]

1. e4 {[%clk 0:03:00.9]} 1... c6 {[%clk 0:02:54.9]} 2. d4 {[%clk 0:03:00.4]}
2... d5 {[%clk 0:02:55.8]} 3. Nc3 {[%clk 0:03:00.6]} 3... dxe4 {[%clk
0:02:55.8]} 4. Nxe4 {[%clk 0:03:01.5]} 4... Bf5 {[%clk 0:02:55.9]} 5. Ng3 {[%clk
0:03:01.4]} 5... Bg6 {[%clk 0:02:54.6]} 6. h4 {[%clk 0:03:01.9]} 6... h6 {[%clk
0:02:54.2]} 7. Nf3 {[%clk 0:03:02.6]} 7... Nd7 {[%clk 0:02:54]} 8. h5 {[%clk
0:03:02.1]} 8... Bh7 {[%clk 0:02:54.3]} 9. Bd3 {[%clk 0:03:03]} 9... Bxd3 {[%clk
0:02:54.7]} 10. Qxd3 {[%clk 0:03:03.9]} 10... e6 {[%clk 0:02:54.5]} 11. Bf4
{[%clk 0:03:03.7]} 11... Qa5+ {[%clk 0:02:53.2]} 12. Bd2 {[%clk 0:03:03.3]}
12... Bb4 {[%clk 0:02:52.8]} 13. c3 {[%clk 0:03:01.4]} 13... Be7 {[%clk
0:02:52.2]} 14. c4 {[%clk 0:03:01.2]} 14... Qb6 {[%clk 0:02:51.9]} 15. Bc3
{[%clk 0:02:59.1]} 15... Ngf6 {[%clk 0:02:51.5]} 16. O-O-O {[%clk 0:02:58.2]}
16... Rd8 {[%clk 0:02:49.5]} 17. Ne4 {[%clk 0:02:54.8]} 17... Nxe4 {[%clk
0:02:48.4]} 18. Qxe4 {[%clk 0:02:55.7]} 18... Qa6 {[%clk 0:02:46.4]} 19. d5
{[%clk 0:02:46.4]} 19... cxd5 {[%clk 0:02:43.2]} 20. cxd5 {[%clk 0:02:47.3]}
20... Nf6 {[%clk 0:02:39.2]} 21. Bxf6 {[%clk 0:02:46]} 21... Bxf6 {[%clk
0:02:35.2]} 22. dxe6 {[%clk 0:02:39.4]} 22... Qxa2 {[%clk 0:01:53.6]} 23. exf7+
{[%clk 0:02:37.5]} 23... Kxf7 {[%clk 0:01:27]} 24. Qg6+ {[%clk 0:02:36]} 24...
Kf8 {[%clk 0:01:11.4]} 25. Rxd8+ {[%clk 0:02:00.3]} 25... Bxd8 {[%clk
0:01:12.3]} 26. Re1 {[%clk 0:01:26.3]} 26... Qf7 {[%clk 0:01:00.6]} 27. Qd6+
{[%clk 0:01:24.8]} 27... Be7 {[%clk 0:00:55.1]} 28. Qb8+ {[%clk 0:01:09.3]}
28... Qe8 {[%clk 0:00:53.4]} 29. Qxb7 {[%clk 0:01:09.5]} 29... Kf7 {[%clk
0:00:32.2]} 30. Ne5+ {[%clk 0:01:07.8]} 30... Kf6 {[%clk 0:00:31.8]} 31. Qf3+
{[%clk 0:00:49.7]} 31... Ke6 {[%clk 0:00:22.8]} 32. Nf7+ {[%clk 0:00:30.2]}
32... Kd7 {[%clk 0:00:22.1]} 33. Qb7# {[%clk 0:00:29.6]} 1-0

[Event "*** Titled Tuesday Blitz"]
[Site "Chess.com"]
[Date "2021.02.09"]
[Round "11"]
[White "cstevens1"]
[Black "RafalBRC"]
[Result "1-0"]
[WhiteElo "2693"]
[BlackElo "2126"]
[TimeControl "180+1"]
[EndTime "12:06:58 PST"]
[Termination "cstevens1 won on time"]

1. e4 {[%clk 0:03:00.9]} 1... e6 {[%clk 0:03:00.1]} 2. d4 {[%clk 0:02:59.7]}
2... d5 {[%clk 0:03:01]} 3. Nd2 {[%clk 0:02:59.5]} 3... Nf6 {[%clk 0:02:59.4]}
4. e5 {[%clk 0:02:59.9]} 4... Nfd7 {[%clk 0:03:00]} 5. c3 {[%clk 0:03:00.5]}
5... c5 {[%clk 0:03:00.1]} 6. f4 {[%clk 0:03:01.2]} 6... Nc6 {[%clk 0:03:00.3]}
7. Ndf3 {[%clk 0:03:01.7]} 7... cxd4 {[%clk 0:02:59.9]} 8. cxd4 {[%clk
0:03:00.8]} 8... f6 {[%clk 0:02:58.6]} 9. Bd3 {[%clk 0:02:59.4]} 9... Bb4+
{[%clk 0:02:55]} 10. Bd2 {[%clk 0:02:59.2]} 10... Be7 {[%clk 0:02:53.5]} 11. Ne2
{[%clk 0:02:58.8]} 11... f5 {[%clk 0:02:48.6]} 12. O-O {[%clk 0:02:58.1]} 12...
Qb6 {[%clk 0:02:44.1]} 13. Bc3 {[%clk 0:02:57.7]} 13... O-O {[%clk 0:02:40.3]}
14. Kh1 {[%clk 0:02:57.8]} 14... a5 {[%clk 0:02:37.5]} 15. Rg1 {[%clk
0:02:54.1]} 15... Nb4 {[%clk 0:02:37.2]} 16. Bb1 {[%clk 0:02:52.1]} 16... Qd8
{[%clk 0:02:35.2]} 17. g4 {[%clk 0:02:52.2]} 17... fxg4 {[%clk 0:02:29.4]} 18.
Rxg4 {[%clk 0:02:53.1]} 18... b6 {[%clk 0:02:28.4]} 19. Ng3 {[%clk 0:02:19.2]}
19... Ba6 {[%clk 0:02:21.7]} 20. f5 {[%clk 0:02:18.3]} 20... Re8 {[%clk
0:01:25.8]} 21. f6 {[%clk 0:02:13.5]} 21... Nxf6 {[%clk 0:01:23]} 22. exf6
{[%clk 0:02:13.3]} 22... Bxf6 {[%clk 0:01:23.9]} 23. Nh5 {[%clk 0:02:03.6]}
23... Rf8 {[%clk 0:01:04.2]} 24. a3 {[%clk 0:01:58.6]} 24... Nc6 {[%clk
0:01:02.3]} 25. Qc2 {[%clk 0:01:55.7]} 25... Ra7 {[%clk 0:00:13.7]} 26. Qxh7+
{[%clk 0:01:50.9]} 26... Kf7 {[%clk 0:00:14.6]} 27. Nxg7 {[%clk 0:01:30.7]}
27... Rh8 {[%clk 0:00:14.2]} 28. Qg6+ {[%clk 0:01:23.3]} 28... Ke7 {[%clk
0:00:09.8]} 29. Ng5 {[%clk 0:01:04.4]} 29... Bxg7 {[%clk 0:00:07.5]} 30. Qxg7+
{[%clk 0:01:04.1]} 30... Kd6 {[%clk 0:00:07.1]} 31. Qxa7 {[%clk 0:00:48]} 31...
Nxa7 {[%clk 0:00:05.8]} 32. Nf7+ {[%clk 0:00:47.9]} 32... Kc6 {[%clk 0:00:05.4]}
33. Nxd8+ {[%clk 0:00:48.2]} 1-0

[Event "*** Titled Tuesday Blitz"]
[Site "Chess.com"]
[Date "2021.02.09"]
[Round "11"]
[White "NiranjanNavalgund"]
[Black "PowerThinking2650"]
[Result "0-1"]
[WhiteElo "2488"]
[BlackElo "2419"]
[TimeControl "180+1"]
[EndTime "12:07:00 PST"]
[Termination "PowerThinking2650 won by checkmate"]

1. e4 {[%clk 0:03:00.9]} 1... e5 {[%clk 0:02:59.4]} 2. Nf3 {[%clk 0:03:00.5]}
2... Nc6 {[%clk 0:02:59.6]} 3. Nc3 {[%clk 0:02:59.9]} 3... Nf6 {[%clk
0:02:59.3]} 4. d4 {[%clk 0:02:58.5]} 4... exd4 {[%clk 0:03:00.2]} 5. Nxd4 {[%clk
0:02:58.6]} 5... Bb4 {[%clk 0:03:00.3]} 6. Nxc6 {[%clk 0:02:58.8]} 6... bxc6
{[%clk 0:03:01.2]} 7. Bd3 {[%clk 0:02:59.1]} 7... O-O {[%clk 0:03:01.2]} 8. O-O
{[%clk 0:02:59.4]} 8... d5 {[%clk 0:03:01.8]} 9. exd5 {[%clk 0:03:00.3]} 9...
cxd5 {[%clk 0:03:02.5]} 10. Qf3 {[%clk 0:02:59.2]} 10... c6 {[%clk 0:03:01.5]}
11. Bg5 {[%clk 0:02:58.7]} 11... h6 {[%clk 0:03:01.7]} 12. Bxf6 {[%clk
0:02:36.4]} 12... Qxf6 {[%clk 0:03:02.6]} 13. Qxf6 {[%clk 0:02:36.2]} 13... gxf6
{[%clk 0:03:03.5]} 14. Ne2 {[%clk 0:02:36.4]} 14... Bc5 {[%clk 0:03:03.6]} 15.
Ng3 {[%clk 0:02:36.5]} 15... Rb8 {[%clk 0:03:03.7]} 16. Rab1 {[%clk 0:02:36.4]}
16... Re8 {[%clk 0:03:03.9]} 17. b3 {[%clk 0:02:33.4]} 17... Re5 {[%clk
0:02:51.4]} 18. Rfe1 {[%clk 0:02:29.1]} 18... Rb4 {[%clk 0:02:51.3]} 19. c4
{[%clk 0:02:24.6]} 19... a5 {[%clk 0:02:26.7]} 20. Kf1 {[%clk 0:02:24.6]} 20...
Ba6 {[%clk 0:02:14.7]} 21. f4 {[%clk 0:02:22.4]} 21... Rxe1+ {[%clk 0:02:05.8]}
22. Rxe1 {[%clk 0:02:23.3]} 22... Kf8 {[%clk 0:01:55.2]} 23. Nf5 {[%clk
0:01:58.2]} 23... dxc4 {[%clk 0:01:49]} 24. Bxc4 {[%clk 0:01:59.1]} 24... Bxc4+
{[%clk 0:01:12.5]} 25. bxc4 {[%clk 0:02:00]} 25... Rxc4 {[%clk 0:01:13.4]} 26.
g3 {[%clk 0:01:59.5]} 26... h5 {[%clk 0:01:08.4]} 27. Rb1 {[%clk 0:01:58.1]}
27... Ke8 {[%clk 0:01:00.9]} 28. Rb7 {[%clk 0:01:52.8]} 28... a4 {[%clk
0:00:56.1]} 29. Ng7+ {[%clk 0:01:49.6]} 29... Kd8 {[%clk 0:00:51.5]} 30. Nxh5
{[%clk 0:01:50.4]} 30... Bd4 {[%clk 0:00:48]} 31. Ng7 {[%clk 0:01:45.6]} 31...
c5 {[%clk 0:00:45.1]} 32. Nf5 {[%clk 0:01:44.3]} 32... Rc2 {[%clk 0:00:33.6]}
33. h4 {[%clk 0:01:39.8]} 33... Rxa2 {[%clk 0:00:27.4]} 34. h5 {[%clk
0:01:38.9]} 34... Rh2 {[%clk 0:00:22]} 35. h6 {[%clk 0:01:38.8]} 35... a3 {[%clk
0:00:20.3]} 36. Nxd4 {[%clk 0:01:34.5]} 36... a2 {[%clk 0:00:18.2]} 37. Kg1
{[%clk 0:01:35.4]} 37... a1=Q+ {[%clk 0:00:15.6]} 38. Kxh2 {[%clk 0:01:34]}
38... Qxd4 {[%clk 0:00:14.4]} 39. h7 {[%clk 0:01:31.3]} 39... Qf2+ {[%clk
0:00:12.9]} 40. Kh1 {[%clk 0:01:29]} 40... Qf3+ {[%clk 0:00:12]} 41. Kh2 {[%clk
0:01:28.8]} 41... Qh5+ {[%clk 0:00:11.9]} 42. Kg2 {[%clk 0:01:27.5]} 42... Qxh7
{[%clk 0:00:12]} 43. Kf3 {[%clk 0:01:22.6]} 43... Qd3+ {[%clk 0:00:11.7]} 44.
Kg4 {[%clk 0:01:22.7]} 44... c4 {[%clk 0:00:12.2]} 45. Rxf7 {[%clk 0:01:19.5]}
45... c3 {[%clk 0:00:12.2]} 46. Rxf6 {[%clk 0:01:19.9]} 46... c2 {[%clk
0:00:12.3]} 47. Rc6 {[%clk 0:01:20.2]} 47... Qd7+ {[%clk 0:00:10.9]} 48. Kg5
{[%clk 0:01:20]} 48... Qxc6 {[%clk 0:00:11.2]} 49. f5 {[%clk 0:01:19.8]} 49...
c1=Q+ {[%clk 0:00:11.3]} 50. Kh5 {[%clk 0:01:19.7]} 50... Q1h6+ {[%clk 0:00:11]}
51. Kg4 {[%clk 0:01:19.2]} 51... Qe4# {[%clk 0:00:11.5]} 0-1

[Event "*** Titled Tuesday Blitz"]
[Site "Chess.com"]
[Date "2021.02.09"]
[Round "11"]
[White "kidagent"]
[Black "xberli"]
[Result "0-1"]
[WhiteElo "2290"]
[BlackElo "2459"]
[TimeControl "180+1"]
[EndTime "12:07:01 PST"]
[Termination "xberli won by resignation"]

1. e4 {[%clk 0:03:00.9]} 1... d5 {[%clk 0:02:59.8]} 2. exd5 {[%clk 0:03:00.9]}
2... c6 {[%clk 0:03:00.7]} 3. dxc6 {[%clk 0:03:00.7]} 3... Nxc6 {[%clk
0:03:01.6]} 4. Nc3 {[%clk 0:03:01]} 4... e5 {[%clk 0:03:01]} 5. Bb5 {[%clk
0:03:00.4]} 5... Nf6 {[%clk 0:03:00.3]} 6. d3 {[%clk 0:03:00.2]} 6... Bc5 {[%clk
0:02:55.9]} 7. Nf3 {[%clk 0:02:59.7]} 7... O-O {[%clk 0:02:54.4]} 8. O-O {[%clk
0:02:58.1]} 8... Bg4 {[%clk 0:02:52.3]} 9. Bxc6 {[%clk 0:02:53.6]} 9... bxc6
{[%clk 0:02:53.2]} 10. h3 {[%clk 0:02:53.8]} 10... Bh5 {[%clk 0:02:51]} 11. Be3
{[%clk 0:02:49]} 11... Bxe3 {[%clk 0:02:33.8]} 12. fxe3 {[%clk 0:02:48.4]} 12...
Qb6 {[%clk 0:02:33.1]} 13. Qd2 {[%clk 0:02:04.7]} 13... e4 {[%clk 0:02:23.1]}
14. dxe4 {[%clk 0:01:58.2]} 14... Rad8 {[%clk 0:02:17.3]} 15. Qf2 {[%clk
0:01:51.4]} 15... Qxb2 {[%clk 0:02:11.8]} 16. Na4 {[%clk 0:01:21.1]} 16... Qb4
{[%clk 0:02:07.8]} 17. e5 {[%clk 0:01:18.7]} 17... Ne4 {[%clk 0:01:58.5]} 18.
Qh4 {[%clk 0:01:16.5]} 18... Qxa4 {[%clk 0:01:54.4]} 19. Qxh5 {[%clk 0:01:07.5]}
19... Ng3 {[%clk 0:01:51.8]} 20. Qg5 {[%clk 0:01:04.6]} 20... Nxf1 {[%clk
0:01:49.8]} 21. Rxf1 {[%clk 0:01:05.5]} 21... Qxc2 {[%clk 0:01:45.8]} 22. Rf2
{[%clk 0:01:02.8]} 22... Qg6 {[%clk 0:01:42.2]} 23. Qf4 {[%clk 0:01:03]} 23...
Rd5 {[%clk 0:01:37.1]} 24. Ng5 {[%clk 0:00:56.8]} 24... h6 {[%clk 0:01:31.1]}
25. Ne4 {[%clk 0:00:56]} 25... Re8 {[%clk 0:01:22.7]} 26. Rf3 {[%clk 0:00:49.6]}
26... Rexe5 {[%clk 0:01:14.8]} 27. Nf2 {[%clk 0:00:39.6]} 27... Rf5 {[%clk
0:00:59]} 28. Qb8+ {[%clk 0:00:38.4]} 28... Kh7 {[%clk 0:00:59.1]} 29. Rg3
{[%clk 0:00:36.6]} 29... Rg5 {[%clk 0:00:58.4]} 30. Rxg5 {[%clk 0:00:26.3]}
30... Rxg5 {[%clk 0:00:59.3]} 31. g4 {[%clk 0:00:24.3]} 31... Rb5 {[%clk
0:00:50.3]} 32. Qxa7 {[%clk 0:00:22.8]} 32... Rb1+ {[%clk 0:00:48.4]} 33. Kg2
{[%clk 0:00:22.1]} 33... Rb2 {[%clk 0:00:48.2]} 34. Qa4 {[%clk 0:00:17.3]} 34...
Qf6 {[%clk 0:00:37.8]} 35. Qe4+ {[%clk 0:00:16.7]} 35... g6 {[%clk 0:00:37.4]}
36. Qf4 {[%clk 0:00:13.4]} 36... Qxf4 {[%clk 0:00:35.6]} 37. exf4 {[%clk
0:00:14.3]} 37... Rxa2 {[%clk 0:00:34.6]} 0-1

[Event "*** Titled Tuesday Blitz"]
[Site "Chess.com"]
[Date "2021.02.09"]
[Round "11"]
[White "TigrVShlyape"]
[Black "wonderfultime"]
[Result "1-0"]
[WhiteElo "2855"]
[BlackElo "2921"]
[TimeControl "180+1"]
[EndTime "12:07:04 PST"]
[Termination "TigrVShlyape won on time"]

1. d4 {[%clk 0:03:00.9]} 1... Nf6 {[%clk 0:02:53.2]} 2. Nf3 {[%clk 0:03:00.3]}
2... d5 {[%clk 0:02:43.8]} 3. Bf4 {[%clk 0:02:56.7]} 3... Bf5 {[%clk 0:02:44.1]}
4. c4 {[%clk 0:02:55.5]} 4... Bxb1 {[%clk 0:02:27.7]} 5. Rxb1 {[%clk 0:02:54]}
5... dxc4 {[%clk 0:02:14.4]} 6. Qa4+ {[%clk 0:02:52.8]} 6... c6 {[%clk
0:02:13.1]} 7. Qxc4 {[%clk 0:02:52.6]} 7... e6 {[%clk 0:02:11.2]} 8. g3 {[%clk
0:02:43.2]} 8... Bd6 {[%clk 0:02:10.8]} 9. Ne5 {[%clk 0:02:23.3]} 9... O-O
{[%clk 0:02:05.1]} 10. Bg2 {[%clk 0:02:23]} 10... Nd5 {[%clk 0:02:04.5]} 11. Bd2
{[%clk 0:02:19.4]} 11... Nd7 {[%clk 0:02:01.2]} 12. Nxd7 {[%clk 0:02:17.8]}
12... Qxd7 {[%clk 0:02:02.1]} 13. O-O {[%clk 0:02:17.7]} 13... Rfd8 {[%clk
0:02:02.2]} 14. Rfd1 {[%clk 0:02:17]} 14... h6 {[%clk 0:02:00.8]} 15. e3 {[%clk
0:02:15.5]} 15... Rac8 {[%clk 0:01:56.6]} 16. b4 {[%clk 0:02:13.6]} 16... a6
{[%clk 0:01:53.3]} 17. a4 {[%clk 0:02:12.6]} 17... b5 {[%clk 0:01:51.9]} 18. Qb3
{[%clk 0:02:06.1]} 18... Qe7 {[%clk 0:01:38.7]} 19. a5 {[%clk 0:02:02.4]} 19...
e5 {[%clk 0:01:32.9]} 20. e4 {[%clk 0:01:47.7]} 20... Nf6 {[%clk 0:01:30.7]} 21.
f4 {[%clk 0:01:40.7]} 21... exf4 {[%clk 0:01:07.2]} 22. e5 {[%clk 0:01:40]}
22... Bxe5 {[%clk 0:01:06.6]} 23. dxe5 {[%clk 0:01:39.6]} 23... Qa7+ {[%clk
0:01:05.8]} 24. Kh1 {[%clk 0:01:35.5]} 24... Ng4 {[%clk 0:01:00.2]} 25. Be1
{[%clk 0:01:35.1]} 25... Nxe5 {[%clk 0:00:20.2]} 26. gxf4 {[%clk 0:01:31.2]}
26... Nc4 {[%clk 0:00:20.7]} 27. Qg3 {[%clk 0:01:25.2]} 27... Rd6 {[%clk
0:00:11.7]} 28. Rxd6 {[%clk 0:01:20.6]} 28... Nxd6 {[%clk 0:00:12.6]} 29. Bc3
{[%clk 0:01:19.2]} 29... Nf5 {[%clk 0:00:10.6]} 30. Qh3 {[%clk 0:01:16.9]} 30...
Nd6 {[%clk 0:00:04]} 31. Rd1 {[%clk 0:01:14]} 31... Rd8 {[%clk 0:00:03.9]} 32.
Qg3 {[%clk 0:01:13]} 32... f5 {[%clk 0:00:01.9]} 33. Qg6 {[%clk 0:01:07.6]}
33... Qe7 {[%clk 0:00:02.2]} 34. Be5 {[%clk 0:01:01.5]} 34... Ne8 {[%clk
0:00:02.5]} 35. Rxd8 {[%clk 0:00:59.2]} 35... Qxd8 {[%clk 0:00:03.4]} 36. h3
{[%clk 0:00:57.5]} 36... Qd7 {[%clk 0:00:02]} 37. Bxc6 {[%clk 0:00:56.3]} 37...
Qd1+ {[%clk 0:00:02.4]} 38. Kh2 {[%clk 0:00:53.4]} 38... Qd2+ {[%clk 0:00:01.7]}
39. Qg2 {[%clk 0:00:53.1]} 1-0